bitfinex-derivatives/quotes_ETHF0:USTF0_20240907
["timestamp","ask_amount","ask_price","bid_price","bid_amount"]
[1725714355528,0.43653,2290.9,2290.8,2.26799389]
[1725714355719,1.36633473,2290.9,2290.8,4.99771134]
[1725714355924,1.36633473,2290.9,2290.8,2.72971745]
[1725714356125,1.36633473,2290.9,2290.8,10.38398]
[1725714356325,1.80286473,2290.9,2290.8,9.94743]
[1725714356528,1.36633473,2290.9,2290.8,9.94743]
[1725714357031,1.36633473,2290.9,2290.8,9.4014865]
[1725714357224,1.36633473,2290.9,2290.8,9.8380365]
[1725714357428,1.80286473,2290.9,2290.8,9.94743969]
[1725714357628,1.80286473,2290.9,2290.8,7.09731706]
[1725714358036,1.80286473,2290.9,2290.8,9.38025738]
[1725714358432,1.80286473,2290.9,2290.8,8.83430419]
[1725714361031,1.80286473,2290.9,2290.8,9.38027475]
[1725714361226,1.80286473,2290.9,2290.8,9.92624511]
[1725714362031,3.64424,2291.4,2291.0,0.43651]
[1725714362235,1.36633473,2291.2,2291.1,0.54588362]
[1725714362428,1.36633473,2291.2,2291.1,9.20608929]
[1725714362630,1.36633473,2291.2,2291.1,7.36034169]
[1725714362838,1.36633473,2291.2,2291.1,7.90622273]
[1725714363527,1.36633473,2291.2,2291.1,9.16622273]
[1725714363721,1.36633473,2291.2,2291.1,7.90622273]
[1725714363925,1.36633473,2291.2,2291.1,11.44837835]
[1725714364123,1.36633473,2291.2,2291.1,10.90249731]
[1725714364436,1.36633473,2291.2,2291.1,11.44837856]
[1725714365629,1.36633473,2291.2,2291.1,9.16622294]
[1725714366239,1.36633473,2291.2,2291.1,12.01634557]
[1725714366626,4.11,2292.2,2291.2,1.09118]
[1725714366936,0.3703,2292.1,2291.9,3.97771242]
[1725714367124,0.3703,2292.1,2292.0,4.46489298]
[1725714367325,0.3623,2292.2,2292.1,0.4363]
[1725714367536,0.3623,2292.2,2292.1,6.15854418]
[1725714367832,1.36633473,2292.2,2292.1,5.72121204]
[1725714368031,1.36633473,2292.2,2292.1,4.46121204]
[1725714368429,1.36633473,2292.2,2292.1,2.18248842]
[1725714369530,1.36633473,2292.2,2291.9,2.71505362]
[1725714369736,3.64407,2292.3,2292.0,2.18271584]
[1725714369931,3.64407,2292.3,2292.1,2.18271584]
[1725714370134,1.36633473,2292.0,2291.9,2.71505362]
[1725714370340,1.36633473,2292.0,2291.9,9.26303713]
[1725714370531,1.36633473,2292.0,2291.9,9.2630307]
[1725714371126,0.3873,2292.4,2291.9,13.1899007]
[1725714371329,0.3873,2292.4,2292.0,12.2826691]
[1725714371330,1.36633473,2292.1,2292.0,12.2826691]
[1725714371528,1.36633473,2292.1,2292.0,12.6412691]
[1725714371733,0.3873,2292.4,2292.2,0.43627]
[1725714371939,0.3873,2292.4,2292.3,2.18266117]
[1725714372133,1.75363473,2292.4,2292.2,0.43627]
[1725714372330,1.36633473,2292.3,2292.2,0.43627]
[1725714372536,1.36633473,2292.3,2292.2,2.61859015]
[1725714373136,7.36633473,2292.3,2291.8,2.27660464]
[1725714373340,3.4073,2292.4,2291.6,0.43639]
[1725714373341,0.43631,2292.1,2291.6,0.43639]
[1725714373636,0.7279,2292.0,2291.7,2.18287432]
[1725714373939,0.43636,2291.8,2291.4,4.19664]
[1725714374137,3.64419,2291.6,2291.5,2.18290077]
[1725714374344,3.64419,2291.6,2291.1,9.51599553]
[1725714374651,0.7279,2291.5,2291.2,2.18319754]
[1725714374827,0.3776,2291.4,2291.3,2.18319754]
[1725714375032,0.81404,2291.4,2291.1,3.02]
[1725714375233,0.81404,2291.4,2291.2,2.1834394]
[1725714375438,0.3776,2291.4,2290.9,5.87171553]
[1725714375632,0.81404,2291.4,2291.0,2.18344246]
[1725714375833,0.81404,2291.4,2291.1,2.18344246]
[1725714376043,0.81404,2291.4,2290.9,3.45652]
[1725714376235,0.81404,2291.4,2291.0,2.18350876]
[1725714376536,0.81404,2291.4,2291.1,2.18350876]
[1725714376736,0.81404,2291.4,2290.9,3.45652]
[1725714376941,0.81404,2291.4,2291.0,2.18347877]
[1725714377143,0.81404,2291.4,2291.1,2.18347877]
[1725714377342,0.81404,2291.4,2290.9,3.45652]
[1725714377539,0.81404,2291.4,2290.8,6.05951553]
[1725714377540,0.3776,2291.4,2291.1,3.45649]
[1725714377738,0.3776,2291.4,2291.2,0.43645]
[1725714378052,0.3601,2291.5,2291.3,5.20319904]
[1725714378344,0.3601,2291.5,2291.3,3.45645]
[1725714378538,4.364,2291.4,2291.3,3.02]
[1725714378738,7.5718,2291.4,2291.1,3.02]
[1725714378946,3.2078,2291.4,2291.1,3.02]
[1725714379641,4.00432,2291.5,2291.1,3.02]
[1725714379841,3.5679,2291.5,2291.1,3.45649]
[1725714380041,3.5679,2291.5,2291.2,2.1833412]
[1725714380342,3.5679,2291.5,2291.1,3.45649]
[1725714380551,3.5679,2291.5,2291.2,2.18331149]
[1725714380746,3.5679,2291.5,2291.1,3.45649]
[1725714380945,3.5679,2291.5,2291.2,2.1833029]
[1725714381135,0.3601,2291.5,2291.1,3.45649]
[1725714381338,0.3601,2291.5,2291.2,2.1832878]
[1725714381539,0.3601,2291.5,2291.1,3.45649]
[1725714381739,0.3601,2291.5,2291.2,2.18333047]
[1725714381940,0.3601,2291.5,2291.1,3.45649]
[1725714382234,3.5679,2291.5,2291.2,2.18332512]
[1725714382439,3.5679,2291.5,2291.1,3.45649]
[1725714382638,3.5679,2291.5,2291.2,2.18333985]
[1725714382834,3.5679,2291.5,2291.1,3.45649]
[1725714382835,0.3601,2291.5,2291.1,3.45649]
[1725714383041,0.3601,2291.5,2291.2,2.18333095]
[1725714383242,0.3601,2291.5,2291.1,3.45649]
[1725714383436,3.5679,2291.5,2291.2,2.18331697]
[1725714383644,3.5679,2291.5,2291.1,3.45649]
[1725714383842,3.5679,2291.5,2291.2,2.18333272]
[1725714384148,3.5679,2291.5,2291.3,2.61970802]
[1725714384346,3.5679,2291.5,2291.2,0.81516]
[1725714384650,3.5679,2291.5,2291.3,2.18325421]
[1725714384840,3.5679,2291.5,2291.2,0.81516]
[1725714385042,3.5679,2291.5,2291.3,2.18324192]
[1725714385242,3.5679,2291.5,2291.2,0.81516]
[1725714385439,3.5679,2291.5,2291.3,2.18323836]
[1725714385750,3.5679,2291.5,2291.2,0.81516]
[1725714385943,3.5679,2291.5,2291.3,2.18323594]
[1725714386146,3.5679,2291.5,2291.2,0.81516]
[1725714386651,3.5679,2291.5,2291.3,2.18323225]
[1725714386844,3.5679,2291.5,2291.2,0.81516]
[1725714387050,3.5679,2291.5,2291.3,2.18323228]
[1725714387252,3.5679,2291.5,2291.3,0.43645]
[1725714387551,3.2078,2291.5,2291.3,0.43645]
[1725714387750,3.2078,2291.5,2291.3,3.45645]
[1725714387951,3.2078,2291.5,2291.4,0.43643]
[1725714388453,3.2078,2291.5,2291.3,3.02]
[1725714388454,3.2078,2291.5,2291.3,3.45644]
[1725714388648,3.2078,2291.5,2291.4,0.43643]
[1725714389044,3.2078,2291.5,2291.3,3.45644]
[1725714389839,0.7684,2291.7,2291.4,0.43643]
[1725714390045,0.372,2291.9,2291.8,0.43636]
[1725714390746,0.372,2291.9,2291.7,0.43636]
[1725714390952,7.3178,2292.0,2291.8,0.43636]
[1725714391147,3.2078,2292.0,2291.8,0.43636]
[1725714392653,3.2078,2292.0,2291.9,3.45634]
[1725714392861,3.5845,2292.4,2292.1,0.43629]
[1725714393154,3.2078,2292.4,2292.2,0.43627]
[1725714393348,3.2078,2292.4,2292.2,0.83137]
[1725714394851,3.2078,2292.4,2292.2,0.3951]
[1725714395051,3.2078,2292.4,2292.2,0.83138]
[1725714395459,3.2078,2292.4,2292.2,0.3951]
[1725714395662,0.753,2292.5,2292.2,0.3951]
[1725714396760,0.753,2292.5,2292.1,3.45629]
[1725714396761,1.18923,2292.5,2292.1,3.45629]
[1725714397160,3.2078,2292.4,2292.1,3.45629]
[1725714397854,3.2078,2292.4,2292.2,0.43628]
[1725714398954,3.2078,2292.4,2291.9,3.02]
[1725714398955,0.43631,2292.1,2291.9,3.02]
[1725714399259,0.32946319,2292.0,2291.9,3.45634]
[1725714400258,0.32946319,2292.0,2291.9,3.02]
[1725714400665,0.32946319,2292.0,2291.9,3.45634]
[1725714401052,0.32946319,2292.0,2291.9,3.02]
[1725714401861,0.3671,2292.2,2292.0,0.4363]
[1725714403379,0.3671,2292.2,2291.9,3.02]
[1725714403571,0.3671,2292.2,2292.0,0.8299]
[1725714404177,0.80339,2292.2,2291.9,3.45633]
[1725714404476,0.4363,2292.1,2291.9,3.45633]
[1725714404673,0.80339,2292.2,2292.0,0.43632]
[1725714404866,0.80339,2292.2,2291.9,3.45632]
[1725714405264,0.80339,2292.2,2292.0,0.43632]
[1725714405468,0.3671,2292.2,2292.1,0.4363]
[1725714406075,4.7295,2292.2,2292.1,0.4363]
[1725714406269,4.7295,2292.2,2291.9,3.02]
[1725714406476,0.43633,2292.0,2291.8,0.43635]
[1725714406673,0.395,2291.9,2291.8,0.43635]
[1725714408581,0.395,2291.9,2291.8,3.75620813]
[1725714408968,0.43631,2292.1,2291.8,3.75620813]
[1725714409280,0.43631,2292.1,2291.8,1.57356196]
[1725714409996,0.43632,2292.0,2291.8,1.13721196]
[1725714410178,0.43632,2292.0,2291.9,1.13721196]
[1725714410380,0.4363,2292.1,2291.9,1.13721196]
[1725714411284,0.4363,2292.1,2291.9,1.57355196]
[1725714412974,3.64412,2292.0,2291.9,1.13721196]
[1725714413984,0.43632,2292.0,2291.9,3.31986696]
[1725714414489,0.43632,2292.0,2291.9,1.13721196]
[1725714415576,3.64411,2292.1,2291.9,1.57355196]
[1725714418085,0.43631,2292.1,2291.9,1.57355196]
[1725714420189,0.7399,2292.2,2291.9,1.13721196]
[1725714420389,0.7399,2292.2,2292.1,0.4363]
[1725714421086,3.2078,2292.4,2292.0,1.89251196]
[1725714421285,1.09049,2292.7,2292.0,1.89251196]
[1725714421286,4.3291,2292.7,2292.5,0.43621]
[1725714421885,3.2078,2292.7,2292.5,3.02]
[1725714422084,0.3588,2293.0,2292.9,0.43615]
[1725714422287,0.43608,2293.3,2292.9,3.45615]
[1725714422595,0.43608,2293.3,2292.9,4.59319371]
[1725714422789,0.43609,2293.2,2292.9,4.91024371]
[1725714423100,0.43609,2293.2,2292.9,5.34638371]
[1725714423397,0.43609,2293.2,2292.9,4.20934]
[1725714424887,4.3283,2293.4,2292.9,4.20934]
[1725714424888,0.43608,2293.3,2292.9,4.20934]
[1725714426700,0.43608,2293.3,2293.0,0.43612]
[1725714427201,0.43609,2293.2,2292.9,4.20933]
[1725714428397,0.43611,2293.1,2292.9,4.20933]
[1725714428694,0.43615,2292.9,2292.7,0.65460763]
[1725714429001,0.43615,2292.9,2292.7,0.43618]
[1725714429205,0.80383,2293.0,2292.8,0.43616]
[1725714429408,0.3677,2293.0,2292.8,0.43616]
[1725714429802,0.80383,2293.0,2292.8,0.43616]
[1725714430001,0.80383,2293.0,2292.7,3.2357702]
[1725714430208,0.80383,2293.0,2292.8,0.43616]
[1725714430906,0.3677,2293.0,2292.8,0.43616]
[1725714431703,0.80383,2293.0,2292.8,0.43616]
[1725714432407,0.3677,2293.0,2292.8,0.43616]
[1725714432706,0.80383,2293.0,2292.8,0.43616]
[1725714434701,0.3677,2293.0,2292.8,0.43616]
[1725714435005,3.2078,2293.1,2292.7,3.2357702]
[1725714435302,0.43609,2293.2,2292.8,0.3843]
[1725714435504,0.4361,2293.2,2292.9,0.82474]
[1725714435708,0.4361,2293.2,2292.9,1.21254]
[1725714436306,0.43611,2293.1,2292.9,1.21254]
[1725714436611,0.43611,2293.1,2292.9,0.7764]
[1725714437306,4.00673,2293.0,2292.8,0.43616]
[1725714437505,4.00673,2293.0,2292.7,3.6719402]
[1725714437708,4.00673,2293.0,2292.8,0.43616]
[1725714438209,0.43615,2292.9,2292.7,3.6719402]
[1725714438400,0.393,2292.9,2292.8,0.43616]
[1725714438909,0.43612,2293.1,2292.9,0.43614]
[1725714439207,0.43612,2293.1,2293.0,0.7709]
[1725714440801,0.43614,2293.0,2292.8,0.43615]
[1725714441210,0.43612,2293.1,2292.9,0.43615]
[1725714441403,0.43614,2293.0,2292.8,0.43616]
[1725714441804,0.43612,2293.1,2292.9,0.43615]
[1725714442507,0.43613,2293.0,2292.9,0.43615]
[1725714442714,0.43612,2293.1,2292.9,0.43615]
[1725714443409,0.43616,2292.8,2292.7,3.2357702]
[1725714443612,0.43616,2292.9,2292.7,3.6719502]
[1725714443807,0.43616,2292.8,2292.7,3.2357702]
[1725714444114,0.43616,2292.8,2292.7,1.4757702]
[1725714444323,1.17886,2292.9,2292.7,1.9119502]
[1725714445211,0.43616,2292.8,2292.7,1.4757702]
[1725714446716,0.43616,2292.8,2292.7,1.9119502]
[1725714447118,1.17886,2292.9,2292.7,1.9119502]
[1725714447514,0.43616,2292.8,2292.7,1.4757702]
[1725714451018,0.43616,2292.9,2292.7,1.9119502]
[1725714451319,0.43616,2292.8,2292.7,0.2157702]
[1725714451520,0.43616,2292.9,2292.7,1.9119502]
[1725714452113,1.17053,2293.0,2292.8,0.43616]
[1725714452318,0.43613,2293.0,2292.9,1.26]
[1725714452515,0.43613,2293.0,2292.9,2.0268]
[1725714455824,0.43613,2293.0,2292.9,1.26]
[1725714456020,1.20883,2293.0,2292.9,1.26]
[1725714456527,0.81903,2293.0,2292.9,1.26]
[1725714457624,3.2078,2293.1,2292.9,5.6208]
[1725714457822,0.3805,2293.2,2293.0,0.3614]
[1725714458018,0.3805,2293.2,2293.1,1.26]
[1725714458625,0.81659,2293.2,2293.1,1.26]
[1725714462033,0.43612,2293.1,2293.0,1.26]
[1725714462329,0.3805,2293.2,2293.0,1.69613]
[1725714462330,0.8166,2293.2,2293.0,1.69613]
[1725714463319,0.8166,2293.2,2293.0,2.83317371]
[1725714463526,0.43611,2293.1,2293.0,1.69613]
[1725714463931,0.43611,2293.1,2293.0,2.83317371]
[1725714464235,0.43611,2293.1,2293.0,4.57877827]
[1725714465120,0.43611,2293.1,2293.0,5.14815983]
[1725714467637,0.43611,2293.1,2293.0,3.44173456]
[1725714467835,0.43611,2293.1,2293.0,1.26]
[1725714469929,3.5883,2293.2,2292.9,1.14006357]
[1725714469930,0.43613,2293.0,2292.9,1.14006357]
[1725714470233,0.43613,2293.0,2292.8,1.14006357]
[1725714470234,0.43615,2292.9,2292.8,1.14006357]
[1725714471335,0.43615,2292.9,2292.8,3.32206801]
[1725714471529,0.43615,2292.9,2292.8,4.06756801]
[1725714471739,0.43615,2292.9,2292.8,4.61305963]
[1725714472132,0.43615,2292.9,2292.8,4.61323164]
[1725714472331,0.43615,2292.9,2292.8,5.18309142]
[1725714472533,0.43615,2292.9,2292.8,4.61320159]
[1725714472835,0.43615,2292.9,2292.8,4.6375998]
[1725714473140,0.43615,2292.9,2292.8,4.61322022]
[1725714473436,0.43615,2292.9,2292.8,1.88575499]
[1725714474137,0.43615,2292.9,2292.8,1.14025499]
[1725714474830,0.43615,2292.9,2292.8,3.86763261]
[1725714475032,0.43615,2292.9,2292.8,4.43750254]
[1725714475226,1.20373,2293.0,2292.8,5.57771561]
[1725714475540,1.20373,2293.0,2292.9,1.14021307]
[1725714475730,0.43613,2293.0,2292.9,1.93836307]
[1725714475932,0.3805,2293.2,2292.9,1.93836307]
[1725714475933,0.8166,2293.2,2293.0,0.43613]
[1725714476139,0.8166,2293.2,2293.1,3.89197611]
[1725714476835,8.40776,2293.8,2293.1,9.36057367]
[1725714477136,4.00079555,2294.1,2292.9,3.98051553]
[1725714477137,0.43595,2294.0,2293.7,1.69598]
[1725714477442,3.5925,2294.1,2293.9,1.13905909]
[1725714477639,4.02843,2294.1,2293.9,1.13790467]
[1725714477839,4.02843,2294.1,2294.0,1.13790467]
[1725714478232,0.3847,2294.1,2294.0,1.13790467]
[1725714478434,0.82062,2294.1,2293.9,1.13790467]
[1725714478736,0.3847,2294.1,2293.9,1.13790467]
[1725714480042,3.5925,2294.1,2293.9,1.13790467]
[1725714480240,4.02842,2294.1,2293.9,1.13790467]
[1725714481034,4.02842,2294.1,2293.8,2.31927467]
[1725714482542,4.02842,2294.1,2293.8,1.18137]
[1725714484838,0.43594,2294.0,2293.8,1.18137]
[1725714485031,0.43596,2293.9,2293.8,0.3723]
[1725714485234,0.43597,2293.8,2293.6,3.82501]
[1725714485530,0.43601,2293.6,2293.5,1.13790467]
[1725714485730,0.43603,2293.5,2293.4,1.13790467]
[1725714485942,0.43605,2293.4,2293.2,2.84730164]
[1725714486135,0.43605,2293.4,2293.1,4.89680467]
[1725714486136,0.43607,2293.3,2293.1,4.89680467]
[1725714486331,0.43609,2293.2,2293.1,4.89680467]
[1725714486639,0.43608,2293.3,2293.1,4.89680467]
[1725714487940,0.43608,2293.3,2293.1,3.7589]
[1725714489242,4.29784,2293.6,2293.0,1.57401467]
[1725714489243,1.09004,2293.6,2293.0,1.13790467]
[1725714489433,0.43613,2293.0,2292.9,3.02]
[1725714490539,0.80062,2293.1,2292.9,3.02]
[1725714491136,0.80062,2293.1,2292.9,4.15790467]
[1725714491341,0.43613,2293.0,2292.9,3.02]
[1725714492346,0.43616,2292.8,2292.7,4.15790467]
[1725714493043,0.43616,2292.8,2292.7,3.02]
[1725714493244,0.43618,2292.8,2292.6,1.13790467]
[1725714493448,0.43618,2292.8,2292.6,1.57410467]
[1725714493743,0.43618,2292.8,2292.6,1.13790467]
[1725714495443,1.44972,2293.0,2292.6,1.13790467]
[1725714495646,1.44972,2293.0,2292.5,8.37340697]
[1725714495647,1.52665,2292.7,2292.5,0.26025467]
[1725714495851,1.09061,2292.4,2292.1,0.26025467]
[1725714496151,0.43632,2292.0,2291.9,2.06769697]
[1725714496343,0.4363,2292.1,2291.9,0.3583]
[1725714497336,0.43632,2292.0,2291.8,3.4098]
[1725714497541,1.16881,2292.1,2291.8,3.84615]
[1725714500046,0.7325,2292.1,2291.8,3.84615]
[1725714500236,1.1688,2292.1,2291.8,3.84615]
[1725714500849,0.7325,2292.1,2291.8,3.84615]
[1725714501250,1.1688,2292.1,2291.8,3.84615]
[1725714501948,0.7325,2292.1,2291.8,3.84615]
[1725714502155,1.1688,2292.1,2291.8,3.84615]
[1725714502553,0.7325,2292.1,2291.8,3.02]
[1725714502746,0.43636,2291.8,2291.6,3.3783]
[1725714503760,0.7325,2292.1,2291.6,3.81469]
[1725714503952,0.43632,2292.0,2291.8,3.02]
[1725714504152,0.43634,2291.9,2291.8,3.02]
[1725714507961,3.2078,2292.0,2291.9,0.43634]
[1725714508266,3.2078,2292.0,2291.9,0.81834]
[1725714508761,0.4363,2292.1,2291.9,0.81834]
[1725714510673,3.64409,2292.2,2292.0,3.45632]
[1725714510872,3.64409,2292.2,2292.0,3.85302]
[1725714511360,3.64409,2292.2,2292.0,3.4167]
[1725714511962,0.4363,2292.1,2292.0,3.4167]
[1725714515778,0.4363,2292.1,2292.0,0.3967]
[1725714517368,3.2078,2292.2,2291.6,3.02]
[1725714517572,3.2078,2292.1,2291.5,0.7475]
[1725714517773,0.43638,2291.7,2291.5,1.18391]
[1725714517978,0.43638,2291.7,2291.6,3.02]
[1725714518377,0.43638,2291.7,2291.6,7.384]
[1725714519069,0.43638,2291.7,2291.6,3.02]
[1725714519863,0.43637,2291.8,2291.6,3.45639]
[1725714520376,0.43637,2291.7,2291.6,3.02]
[1725714522063,0.43637,2291.7,2291.6,1.69639]
[1725714522472,0.43637,2291.7,2291.6,1.26]
[1725714522667,1.1208,2291.9,2291.6,1.26]
[1725714522873,0.43637,2291.7,2291.6,1.26]
[1725714523268,0.43637,2291.7,2291.6,1.69639]
[1725714523469,3.2078,2292.1,2291.6,1.26]
[1725714523678,0.43634,2291.9,2291.8,1.26]
[1725714526176,0.43634,2291.9,2291.8,1.69636]
[1725714527372,0.43634,2291.9,2291.8,1.26]
[1725714529185,0.43634,2291.9,2291.8,1.69636]
[1725714530778,0.43634,2291.9,2291.8,1.26]
[1725714532978,0.7636,2292.2,2291.8,1.26]
[1725714532979,0.43633,2292.0,2291.9,0.43634]
[1725714533285,0.43633,2292.0,2291.9,0.3908]
[1725714537082,3.2078,2292.1,2291.9,4.28296351]
[1725714537276,3.2078,2292.1,2291.9,2.10019697]
[1725714537473,0.43632,2292.0,2291.9,2.10019697]
[1725714537688,0.43632,2292.0,2291.9,4.28295509]
[1725714538787,3.64411,2292.1,2291.9,3.00987812]
[1725714538986,0.43621,2292.6,2292.4,0.43623]
[1725714539194,0.43622,2292.6,2292.5,3.44227788]
[1725714539485,0.43622,2292.6,2292.5,5.15205851]
[1725714539681,0.43622,2292.6,2292.5,3.44227788]
[1725714539877,0.43622,2292.6,2292.5,5.15205851]
[1725714540387,0.43622,2292.6,2292.5,3.89205851]
[1725714542882,0.43622,2292.6,2292.5,3.89213012]
[1725714543482,4.3582,2292.7,2292.4,1.26]
[1725714543483,0.43622,2292.5,2292.4,1.26]
[1725714550395,0.43622,2292.5,2292.4,5.15215609]
[1725714551785,0.43622,2292.5,2292.4,3.44237546]
[1725714552397,0.43622,2292.5,2292.4,5.15215609]
[1725714552584,0.43622,2292.5,2292.4,3.44237546]
[1725714552785,0.43624,2292.4,2292.3,1.70978063]
[1725714552986,0.43626,2292.3,2292.2,1.70978063]
[1725714553190,1.20936,2292.3,2292.2,3.89227568]
[1725714554287,1.20936,2292.3,2292.2,2.18249505]
[1725714554487,1.20936,2292.3,2292.2,3.89227568]
[1725714554692,1.56756,2292.3,2292.2,3.89227568]
[1725714556693,7.02062,2292.3,2292.2,2.18249505]
[1725714556896,0.4363,2292.1,2292.0,1.70978063]
[1725714557195,0.43632,2292.0,2291.9,1.70978063]
[1725714557498,6.7537,2292.3,2291.8,1.70978063]
[1725714557499,0.43634,2291.9,2291.8,1.70978063]
[1725714557692,0.43636,2291.8,2291.7,1.70978063]
[1725714557887,0.43636,2291.8,2291.7,5.15278859]
[1725714557888,0.81876,2291.8,2291.7,5.15278859]
[1725714559804,0.3824,2291.8,2291.7,5.15278859]
[1725714559985,0.81876,2291.8,2291.7,5.15278859]
[1725714560192,0.3824,2291.8,2291.7,5.15278859]
[1725714560501,0.81876,2291.8,2291.7,5.15278859]
[1725714562489,1.18846,2291.8,2291.7,5.15278859]
[1725714562693,1.18846,2291.8,2291.7,2.96978063]
[1725714562998,1.18846,2291.8,2291.7,5.15279718]
[1725714565198,1.18846,2291.8,2291.7,3.89279718]
[1725714565400,16.01946,2291.8,2291.5,1.70978063]
[1725714565608,0.43643,2291.4,2291.3,1.70978063]
[1725714565794,0.43643,2291.4,2291.3,2.18330976]
[1725714566199,0.43645,2291.3,2291.2,1.70978063]
[1725714566499,0.43641,2291.6,2291.4,0.43642]
[1725714566709,0.43641,2291.6,2291.4,1.69642]
[1725714567006,0.43641,2291.6,2291.4,2.45012]
[1725714567599,0.7384,2291.7,2291.5,0.43641]
[1725714567803,3.2078,2291.8,2291.6,1.26]
[1725714568005,3.2078,2291.8,2291.6,2.08098]
[1725714568909,3.2078,2291.8,2291.6,3.7914256]
[1725714569099,3.64416,2291.8,2291.6,3.7914256]
[1725714569604,0.43637,2291.7,2291.6,1.26]
[1725714570001,3.64416,2291.8,2291.6,1.26]
[1725714571797,3.64416,2291.8,2291.6,1.69639]
[1725714571993,3.2078,2291.8,2291.7,0.43637]
[1725714572505,3.2078,2291.8,2291.7,0.80017]
[1725714572708,3.2078,2291.8,2291.7,0.43637]
[1725714573201,0.7384,2292.0,2291.8,0.43634]
[1725714573405,0.3613,2292.0,2291.9,1.18484]
[1725714574198,3.5691,2292.0,2291.9,1.18484]
[1725714574610,3.5691,2292.0,2291.9,0.7485]
[1725714575009,0.3613,2292.0,2291.9,0.7485]
[1725714575304,3.5691,2292.0,2291.9,0.7485]
[1725714576707,4.00542,2292.0,2291.9,0.3752]
[1725714578004,0.79762,2292.0,2291.9,0.3752]
[1725714578205,3.5691,2292.0,2291.9,0.3752]
[1725714578510,4.00542,2292.0,2291.9,0.3752]
[1725714578707,3.5691,2292.0,2291.9,0.3752]
[1725714579012,3.5691,2292.0,2291.9,0.81154]
[1725714579906,5.20063,2292.4,2291.9,0.81154]
[1725714579907,7.3178,2292.7,2291.9,12.92120027]
[1725714580110,3.2078,2292.7,2292.6,1.6962]
[1725714580906,3.2078,2292.7,2292.6,1.26]
[1725714583716,0.43617,2292.8,2292.6,1.26]
[1725714583915,3.64397,2292.8,2292.6,1.26]
[1725714584318,3.64397,2292.8,2292.5,0.43621]
[1725714584618,3.64397,2292.8,2292.5,1.69621]
[1725714586110,7.5694,2292.8,2292.2,4.9182456]
[1725714586313,7.5694,2292.8,2292.2,4.4678]
[1725714586314,1.09047,2292.7,2292.2,4.4678]
[1725714586617,0.43623,2292.5,2292.2,1.69628]
[1725714587407,0.43624,2292.4,2292.2,1.69628]
[1725714587614,0.7675,2292.4,2292.2,1.69628]
[1725714587817,1.20374,2292.4,2292.2,1.69628]
[1725714588325,0.7675,2292.4,2292.2,1.69628]
[1725714588511,0.7675,2292.4,2292.3,0.43626]
[1725714589814,0.7675,2292.4,2292.2,1.69627]
[1725714590021,1.1569,2292.4,2292.2,1.69627]
[1725714590321,1.1569,2292.4,2292.3,0.43626]
[1725714593411,0.43624,2292.5,2292.3,1.69626]
[1725714595719,0.43622,2292.5,2292.3,1.69626]
[1725714596421,1.52532,2292.6,2292.3,1.69626]
[1725714597417,1.52532,2292.6,2292.4,0.43624]
[1725714597618,1.0891,2292.6,2292.5,0.43622]
[1725714597913,3.2078,2292.7,2292.6,0.4362]
[1725714598126,3.2078,2292.7,2292.6,0.8317]
[1725714598320,3.2078,2292.7,2292.6,1.2268]
[1725714599525,0.43617,2292.8,2292.6,0.7906]
[1725714599921,3.64397,2292.8,2292.6,0.7906]
[1725714600214,3.2078,2292.8,2292.5,1.26]
[1725714600416,0.43621,2292.6,2292.4,0.43624]
[1725714601027,0.3935,2292.5,2292.4,0.43624]
[1725714601718,0.3581,2292.7,2292.6,0.4362]
[1725714601928,4.91185,2292.9,2292.7,0.43617]
[1725714602113,4.91185,2292.9,2292.8,0.3952]
[1725714602316,0.80185,2292.9,2292.8,0.3952]
[1725714602517,0.3578,2293.1,2292.9,0.43613]
[1725714602713,0.7415,2293.4,2293.0,1.26]
[1725714602922,0.3578,2293.6,2293.3,1.26]
[1725714603126,0.79381,2293.6,2293.3,1.69606]
[1725714603422,0.7415,2293.7,2293.5,1.69603]
[1725714603828,0.7415,2293.7,2293.5,1.26]
[1725714604219,0.7415,2293.7,2293.5,1.69603]
[1725714604424,0.7415,2293.7,2293.5,1.26]
[1725714604816,1.17749,2293.7,2293.5,1.26]
[1725714606131,1.17749,2293.7,2293.4,0.43604]
[1725714606431,0.43602,2293.6,2293.3,3.45606]
[1725714607426,0.3955,2293.5,2293.3,3.45606]
[1725714608132,0.83154,2293.5,2293.3,3.02]
[1725714608432,4.03934,2293.5,2293.2,0.83128]
[1725714608636,3.2078,2293.5,2293.3,0.43607]
[1725714609432,3.64384,2293.5,2293.2,0.83128]
[1725714609831,0.43605,2293.4,2293.2,0.83128]
[1725714610529,3.64384,2293.5,2293.2,0.83128]
[1725714610725,3.64384,2293.5,2293.3,0.43607]
[1725714611746,3.64384,2293.5,2293.2,0.83128]
[1725714611929,0.43605,2293.4,2293.2,0.83128]
[1725714612131,3.2078,2293.5,2293.1,0.3829]
[1725714612332,0.43609,2293.2,2293.1,0.3829]
[1725714612637,0.43609,2293.2,2293.0,3.45612]
[1725714612938,0.82608,2293.3,2293.0,3.45612]
[1725714613145,0.82608,2293.3,2293.1,0.43611]
[1725714613534,0.82608,2293.3,2293.0,3.45611]
[1725714614341,0.43609,2293.2,2293.0,3.02]
[1725714614534,0.4361,2293.2,2292.9,1.19883]
[1725714614839,1.1559,2293.2,2293.0,0.43613]
[1725714615233,0.7198,2293.2,2293.0,0.43613]
[1725714616438,0.39,2293.3,2293.1,0.43611]
[1725714616636,0.39,2293.3,2293.2,0.43609]
[1725714616837,3.2078,2293.5,2293.4,0.43605]
[1725714618131,3.2078,2293.5,2293.3,1.20336]
[1725714618326,3.2078,2293.5,2293.3,0.7673]
[1725714618531,0.3774,2293.4,2293.3,0.7673]
[1725714619435,0.3774,2293.4,2293.3,1.20337]